Cogmind - Beta 17 @@@ ROGUE MODE // 2026.07.23 @ 15:38:08 Player: Thesoulkiller104 Result: Destroyed by YI-UF0 with YI-UF0's Doublenader Performance ------------- Evolutions (0) 0 Regions Visited (2) 400 Robots Destroyed (41) 205 Value Destroyed (592) 592 Prototype IDs (0) 0 Alien Tech Used (0) 0 Bonus (0) 0 TOTAL SCORE: 1197 Bonus ------- None Cogmind --------- Core Integrity 0/250 Matter 255/300 Energy 160/160 System Corruption 0% Temperature Cool (30) Movement Rolling (80) Location -10/Mines Parts ------- > --- POWER (1) -------- Light Nuclear Core > --- PROPULSION (2) --- Wheel Wheel > --- UTILITY (2) ------ Small Storage Unit Backup Plating I > --- WEAPON (2) ------- Light Cannon Light Cannon > --- INVENTORY (8) ---- Ion Engine Wheel Light Cannon Light Cannon Light Cannon Light Cannon Grenade Launcher Mining Laser Peak State ------------ > --- POWER ------------ Light Nuclear Core > --- PROPULSION ------- Wheel Wheel > --- UTILITY ---------- Small Storage Unit Backup Plating I > --- WEAPON ----------- Light Cannon Light Cannon > --- INVENTORY -------- Ion Engine Light Treads Light Assault Rifle Light Cannon Light Cannon Light Cannon Light Cannon Grenade Launcher [Rating: 9] Favorites ----------- Power Light Ion Engine Engine Light Ion Engine Power Core Light Nuclear Core Propulsion Light Treads Treads Light Treads Wheel Wheel Utility Small Storage Unit Device Seismic Detector Storage Small Storage Unit Protection Backup Plating I Weapon Light Cannon Ballistic Gun Light Assault Rifle Ballistic Cannon Light Cannon Launcher Grenade Launcher Build | -11 -10 -10 ------- Run | Yrd Mat Min Slots Evolved . | . . . Power . | . . . Propulsion . | . . . Utility . | . . . Weapon . | . . . Parts Attached 23 | 9 11 3 Power 4 | 1 2 1 Engine 3 | 1 2 . Core 1 | . . 1 Reactor . | . . . Propulsion 6 | 4 . 2 Treads 2 | 2 . . Leg . | . . . Wheel 4 | 2 . 2 Hover . | . . . Flight . | . . . Utility 4 | 2 2 . Device 2 | 1 1 . Storage 1 | 1 . . Processor . | . . . Hackware . | . . . Protection 1 | . 1 . Artifact . | . . . Weapon 9 | 2 7 . Energy Gun . | . . . Energy Cannon . | . . . Ballistic Gun 4 | 2 2 . Ballistic Cannon 4 | . 4 . Launcher 1 | . 1 . Special Weapon . | . . . Impact Weapon . | . . . Slashing Weapon . | . . . Piercing Weapon . | . . . Special Melee Weapon . | . . . Unidentified Prototypes . | . . . Parts Lost 3 | . 2 1 Power . | . . . Propulsion 2 | . 1 1 Utility 1 | . 1 . Weapon . | . . . Highest Loss Streak 1 | . 1 1 To Critical Strikes . | . . . Average Backups 6 | 2 6 7 Power . | . . . Propulsion 1 | 1 1 1 Utility 1 | . 1 . Weapon 3 | . 2 6 Tool/Special . | . . . Unused Backups 9 | 1 2 6 Power . | . . . Propulsion 3 | 1 1 1 Utility . | . . . Weapon 6 | . 1 5 Tool/Special . | . . . Average Slot Usage (%) 95 | . 95 95 Engine 11 | . 14 1 Core 2 | . . 12 Treads 16 | . 19 . Wheel 9 | . 6 24 Device 6 | . 8 . Storage 14 | . 14 14 Protection 5 | . 3 13 Ballistic Gun 10 | . 13 . Ballistic Cannon 16 | . 14 28 Peak Build Rating 9 | 7 7 9 Average Rating 6 | 5 6 8 On Entrance 4 | . 7 6 Avg Prop Armor Cover (%) . | . . . Naked Turns . | . . . Heaviest Build 17 | 12 17 17 Greatest Support 40 | 40 40 20 Greatest Overweight (x) 3 | . 3 1 Average Overweight (x) . | . . . Largest Inventory Capacity 8 | 8 8 8 Average Capacity 7 | 7 8 8 Most Carried 8 | 4 8 8 Average Carried 6 | 2 6 7 Final Capacity 8 | 8 8 8 Final Carried 8 | 4 8 8 Class Distribution -------------------- 100% | Mutant Dominant Class ---------------- Mutant | -10/Materials Mutant | -10/Mines Resources | -11 -10 -10 ----------- Run | Yrd Mat Min Matter Collected 1128 | 318 646 164 Remotely . | . . . Salvage Created 923 | 226 568 129 Parts 82 | 13 55 14 Haulers Intercepted 2 | . 2 . Recyclers Shooed 3 | . 3 . Parts Field Recycled . | . . . Retrieved Matter . | . . . Parts Self-Destructed . | . . . Prevented . | . . . Parts Restored . | . . . Kills | -11 -10 -10 ------- Run | Yrd Mat Min Combat Hostiles Destroyed 24 | . 19 5 Guns 11 | . 11 . Cannons 9 | . 4 5 AOE 4 | . 4 . Classes Destroyed 9 | 2 7 . Builder 2 | . 2 . Tunneler 7 | 5 . 2 Hauler 2 | . 2 . Recycler 2 | 1 1 . Operator 1 | . 1 . Watcher 3 | . 3 . Swarmer 17 | . 14 3 Grunt 5 | . 3 2 Subdweller 2 | . 2 . Best Kill Streak 5 | 2 4 5 Combat Bots Only 3 | . 3 3 Max Kills in Single Turn 1 | 1 1 1 Gunslinging . | . . . Exploded 1 | . 1 . Melee . | . . . Uniques/NPCs Destroyed . | . . . Combat | -11 -10 -10 -------- Run | Yrd Mat Min Hostile Shots Fired 154 | . 125 29 Missed 48 | . 39 9 Hits 106 | . 86 20 Projectile 106 | . 86 20 AOE 11 | . 3 8 Critical Strikes 1 | . 1 . Damage Taken 1230 | . 870 360 Core 256 | . 172 84 Absorbed by Shields . | . . . Core Remaining (%) 100 | 100 . . Volleys Fired 108 | 12 79 17 Largest 2 | 2 2 2 Hottest 60 | 40 60 60 Shots Fired 210 | 24 152 34 Gun 116 | 24 92 . Cannon 87 | . 53 34 Launcher 7 | . 7 . Special . | . . . Kinetic 203 | 24 145 34 Thermal . | . . . Explosive 7 | . 7 . Electromagnetic . | . . . Robot Hit Streak 12 | 9 12 7 Robot Miss Streak 4 | 1 4 1 Penetration Max . | . . . Secondary Targets 2 | . 2 . Max Gunslinging Chain 1 | . 1 . Shots Hit Robots 120 | 16 81 23 Core Hits 54 | 7 38 9 Critical Kills . | . . . Critical Parts Destroyed . | . . . Critical Strikes 1 | . . 1 Blast 1 | . . 1 Melee Attacks . | . . . Impact . | . . . Slashing . | . . . Piercing . | . . . Sneak Attacks . | . . . Combat Hostiles . | . . . Follow-up Attacks . | . . . Damage Inflicted 1964 | 180 1364 420 Guns 693 | 180 513 . Cannons 854 | . 434 420 Explosions 416 | . 416 . Melee . | . . . Ramming 1 | . 1 . Kinetic 1547 | 180 947 420 Thermal . | . . . Explosive 416 | . 416 . Electromagnetic . | . . . Impact . | . . . Slashing . | . . . Piercing . | . . . Highest Corruption . | . . . Average Corruption . | . . . Corruption Purged . | . . . Corruption Blocked . | . . . Overload Shots . | . . . Overflow Damage 47 | . 34 13 Projectiles 25 | . 12 13 Explosions 22 | . 22 . Melee . | . . . Knockbacks 3 | . 2 1 Impact . | . . . Kinetic 3 | . 2 1 Secondary . | . . . Self-Inflicted Damage . | . . . Shots . | . . . Rammed 1 | . 1 . Targets Rammed 1 | . 1 . Kicked . | . . . Crushed . | . . . Highest Temperature 54 | . 8 54 Average Temperature 13 | . 2 22 Received Heat Transfer 63 | . 30 33 Siege Activations . | . . . Martial Activations . | . . . Shielding Activations . | . . . Robots Disrupted . | . . . Combat Hostiles . | . . . Robots Corrupted . | . . . Combat Hostiles . | . . . Parts Fried . | . . . Impact Corruptions . | . . . Robots Melted . | . . . Combat Hostiles . | . . . Parts Melted . | . . . Heat Transferred . | . . . Parts Sabotaged . | . . . Parts Stolen . | . . . Parts Stripped . | . . . Power Chain Reactions . | . . . Alert | -11 -10 -10 ------- Run | Yrd Mat Min Maximum Alert Level . | . . . Low Security (%) 100 | 100 100 100 Level 1 . | . . . Level 2 . | . . . Level 3 . | . . . Level 4 . | . . . Level 5 . | . . . High Security . | . . . Max Security . | . . . Peak Influence 105 | 10 105 80 Initial 40 | . . 40 Average 34 | 1 38 35 Influence Increases 656 | 30 496 130 Destroy 0b10 Robot/C 440 | . 340 100 Destroy 0b10 Robot/NC 85 | 30 45 10 Destroy Leader 80 | . 60 20 Successful Hack 12 | . 12 . Disable Machine 30 | . 30 . Destroy Structure 9 | . 9 . Influence Decreases 616 | 30 392 194 Entered New Map 64 | . . 64 Time Decay 539 | 30 389 120 Lost Part 13 | . 3 10 Squads Dispatched 2 | . 2 . Investigation 1 | . 1 . Extermination . | . . . Reinforcement 1 | . 1 . Assault . | . . . Garrison . | . . . Intercept . | . . . Searches Triggered . | . . . Construction Impeded . | . . . Haulers Reinforced . | . . . Active Scanning Responses . | . . . Cargo Convoy Interrupts . | . . . Stealth | -11 -10 -10 --------- Run | Yrd Mat Min Distress Signals . | . . . Communications Jammed . | . . . Distress Signals . | . . . Times Spotted 38 | . 32 6 Peak Tracking Total 5 | . 5 3 Tactical Retreats . | . . . Traps | -11 -10 -10 ------- Run | Yrd Mat Min Traps Triggered 4 | . 4 . Indirectly . | . . . Trap Hack Attempts . | . . . Triggered . | . . . Disarmed . | . . . Reprogrammed . | . . . Reused . | . . . Traps Extracted . | . . . Installed . | . . . Triggered . | . . . Machines | -11 -10 -10 ---------- Run | Yrd Mat Min Machines Disabled 2 | . 2 . Max in Single Turn 1 | . 1 . Machines Repaired . | . . . Machines Dismantled . | . . . Machines Sabotaged . | . . . Overloaded Fab Kills . | . . . Hacking | -11 -10 -10 --------- Run | Yrd Mat Min Machines Accessed 6 | . 5 1 Terminals 5 | . 4 1 Fabricators . | . . . Repair Stations 1 | . 1 . Recycling Units . | . . . Scanalyzers . | . . . Garrison Access . | . . . Total Hacks 15 | . 11 4 Successful 4 | . 3 1 Failed 11 | . 8 3 Catastrophic 1 | . 1 . Database Lockouts . | . . . Manual 9 | . 6 3 Terminals 13 | . 9 4 Fabricators . | . . . Repair Stations 2 | . 2 . Recycling Units . | . . . Scanalyzers . | . . . Garrison Access . | . . . Terminal Hacks 2 | . 1 1 Robot Analysis 1 | . 1 . Zone Layout 1 | . . 1 Fabricator Hacks . | . . . Repair Station Hacks 1 | . 1 . Refit 1 | . 1 . Recycling Unit Hacks . | . . . Scanalyzer . | . . . Garrison Access Hacks . | . . . Unauthorized Hacks 1 | . 1 . Terminals 1 | . 1 . Assimilate 1 | . 1 . Fabricators . | . . . Repair Stations . | . . . Recycling Units . | . . . Scanalyzers . | . . . Garrison Access . | . . . Data Cores Recovered . | . . . Used . | . . . Hacking Detections 4 | . 3 1 Full Trace Events . | . . . Feedback Events . | . . . Feedback Blocked . | . . . Robot Schematics Acquired . | . . . Robots Built . | . . . Authchips . | . . . Time . | . . . Total Robot Build Rating . | . . . Part Schematics Acquired . | . . . Parts Built . | . . . Authchips . | . . . Time . | . . . Total Part Build Rating . | . . . Part Studies Acquired . | . . . Parts Repaired . | . . . Time . | . . . Parts Recycled . | . . . Recycled Matter . | . . . Retrieved Matter . | . . . Retrieved Components . | . . . Parts Scanalyzed . | . . . Part Schematics Acquired . | . . . Parts Damaged . | . . . Bothacking | -11 -10 -10 ------------ Run | Yrd Mat Min Used RIF Installer . | . . . Robots Hacked . | . . . Non-combat . | . . . Combat . | . . . Robot Hacks Applied . | . . . Relay Couplers Released . | . . . Fabnet Peak Effective % . | . . . Robots Rewired . | . . . Allies Hacked . | . . . Hacks Repelled . | . . . Allies | -11 -10 -10 -------- Run | Yrd Mat Min Total Allies . | . . . Largest Group . | . . . Highest-Rated Group . | . . . Highest-Rated Ally . | . . . Total Orders . | . . . Ally Attacks . | . . . Total Damage . | . . . Kills . | . . . Allies Corrupted . | . . . Allies Melted . | . . . Intel | -11 -10 -10 ------- Run | Yrd Mat Min Active Infowar (turns) 948 | 119 829 . Seismic 948 | 119 829 . Robot Analysis Total 1 | . 1 . Derelict Logs Recovered . | . . . Drone Launches . | . . . Drone Recoveries . | . . . Exploration | -11 -10 -10 ------------- Run | Yrd Mat Min Turns Passed 1898 | 209 1371 318 Spaces Moved 1080 | 103 678 299 Core 3 | 2 1 . Treads 482 | 88 394 . Legs . | . . . Wheels 595 | 13 283 299 Hover . | . . . Flight . | . . . Fastest Speed 50 | 50 80 80 Average Speed 116 | 147 126 83 Slowest Speed 200 | 160 200 95 Overloaded Moves . | . . . Propulsion Burnouts . | . . . Robots Hopped . | . . . Potential Cave-ins . | . . . Cave-ins Triggered . | . . . Exploration Rate (%) 51 | 4 83 68 Regions Visited 2 Branch Regions 1 Pre-discovered Areas . | . . . Known Exits Taken . | . . . Unknown Exits Taken 2 | 1 1 . Scrap Searched . | . . . Spaces Dug . | . . . Terrain Destroyed 12 | . 12 . Melee . | . . . Projectile . | . . . AOE 12 | . 12 . Terrain Rammed . | . . . Walls Destroyed . | . . . Machines Disabled . | . . . Actions | -11 -10 -10 --------- Run | Yrd Mat Min Total 1513 | 134 1044 335 Wait 261 | 5 246 10 Move 1078 | 102 677 299 Hop . | . . . Pick Up 17 | 5 10 2 Fast Attach 13 | 7 5 1 Attach 6 | . 5 1 Detach 2 | . 2 . Swap 15 | 2 11 2 Drop 12 | 1 8 3 Fire 108 | 12 79 17 Melee . | . . . Ram . | . . . Kick . | . . . Crush 1 | . 1 . Escape Stasis . | . . . Rewire . | . . . Trap . | . . . Miscellaneous . | . . . Route ------- -11/Scrapyard -10/Materials (discovered 4 exits: [*Mat x2] / *Min / [*Sub]) -10/Mines History --------- Turn | Location | Event 16 | -11/Scrapyard | Discovered new exit (range 13) 210 | -11/Scrapyard | Entered Materials 306 | -10/Materials | Build established: Mutant 789 | -10/Materials | Discovered new exit (range 12) 910 | -10/Materials | Derelicts attacked the area 1021 | -10/Materials | Core integrity fell below 50% 1064 | -10/Materials | Discovered new exit (range 11) 1277 | -10/Materials | Discovered new exit (range 16) 1558 | -10/Materials | Discovered new exit (range 16) 1581 | -10/Materials | Entered Mines 1824 | -10/Mines | Core integrity fell below 20% 1899 | -10/Mines | Destroyed by YI-UF0 with YI-UF0's Doublenader Last Messages --------------- 01758_ Dropped Lgt. Treads. 01759_ Acquired Wheel. 01760_ Acquired 2 matter. 01797_ A message is triggered: "If you're looking for Megawrench, sorry but we're not in our cave right now, after essentially being evicted by all these Unaware tunnelers." 01800_ "Blame H1-IDC, who apparently didn't care about the consequences of repeatedly making a mess in Materials. Shooting at robots and generally destroying stuff raised the alert level high enough to trigger assault squads over in the main complex, and they later decided the best way to defend their interests would be to start expanding in this direction." 01805_ The unstable cave ceiling collapses. 01805_ Acquired 6 matter. 01823_ S-10 Pest destroyed. 01833_ Acquired 20 matter. 01833_ Acquired 17 matter. 01892_ Destroyed Shock Absorption System. 01895_ YI-UF0 Adv. Heat Sink blasted off. 01899_ YI-UF0 mumbles something. 01899_ The unstable cave ceiling collapses. Map ----- +----------------------------------------------------+ | | | | | | | | | | | | | | | ??????????????????????????????????????????? | | ??####??????????????????????????????####??? | | ?## ####?????????????#########???## ##?? | | ## ##???????????## #???# #?? | | # ##??????????# #???# #?? | | # #??????????# ##### #?? | | ?# #??????????## #?? | | ?# ##??????????### """ ### #?? | | ?## ## ##???????????## """ #### #?? | | ######## #?????######## """ #?## ##?? | | *%| #?????# #??####??? | | = #??#### ####### ##????????? | | ######## #?## #?????######?????????? | | ???????## ##?# #??#####?????????????? | | ????????## ##??# #### # ##????????????? | | ?????????# #???## # #????????????? | | ?????????# #????## ##???????????? | | ?????????# #?????# # #???????????? | | ?????????# #?????# [ @ ##??????????? | | ?????????# #?????## ##?????????? | | ????###### #??????### ##????????? | | ????# #????????# #????????? | | ????# ######????###### #????????? | | ????# #????????## ### ##????????? | | #???# #???????## = ##?????????? | | ##### #??????## #??????????? | | ## ######## % #????????? | | # % ????? | | ####### # # #??? | | ##### #?????####### # ## #???? | | ###?## ##??????????# ##??# ### #???? | | ##??## #?????????? # #????##??? #???? | | ##### #?????????? = g# ?????????????? | | # #??????????= % ????????????? | | #?????????? # # #??????????? | | ##?????????## #=% ###??????????? | | ##??????????## % ? ????????????? | | #???????????# ? ???????????? | | #??????????? # #? ???????????? | | ## #?????????? ? ??????????????? | | #### #??????????#??#???????????????? | | #??# ##?????????????????????????????? | | #??## ##??????????????????????????????? | +----------------------------------------------------+ Best States ------------- Heat Dissipation 25 Energy Generation 14 Energy Capacity 250 Matter Stores 300 Matter Capacity 300 Sight Range 16 Terrain Scan Density 10 Armor Coverage 80 Evasion (%) 44 Recoil Reduction 2 Item Schematics ----------------- None Robot Schematics ------------------ None Fabricated ------------ Nothing Repaired ---------- Nothing Studied --------- None Alien Tech Used ----------------- None Achievements -------------- None Challenges ------------ None Game ------ Seed MakeshiftSchematicWings Manual? 0 Play Time 00:16:38 Cumulative 58.7 hours Start 2026.07.23 @ 15:24:16 End 2026.07.23 @ 15:38:08 Sessions 1 Manual Loads 0 Difficulty Rogue Special Mode None Game No. 74 Rogue 49 Adventurer 18 Explorer 7 Win Type - Total 1 Types 1/0/0/0/0/0/0/0/0/0 Lore% 20 Gallery% 32 Achievement% 30 Wizard Run 0 Options --------- Layout 1 ASCII 0 Keyboard 1 Movement Numpad Keybinds 0 Fullscreen 1 Font 32/SmallcapsGlow Map View 77x35 Zoom Use 21% Tactical HUD 1 Map Filters NONE Filters NONE Steam 1 RUN: 964471c0-bb0f-44a9-bb43-d7b91e605b1b